[Event "Championnat du monde jeunes U10"]
[Date "2024.11.25"]
[White "Munoz Padilla, Andres"]
[Black "Mariani, Kim Paul"]
[WhiteElo "1604"]
[BlackElo "1814"]
[Round "10.12"]
[Result "0-1"]
[TimeControl "5400+30"]

1. e4 {[%clk 1:30:54]} 1... c5 {[%clk 1:30:19]} 2. Nf3 {[%clk 1:30:50]} 2... Nc6
{[%clk 1:30:24]} 3. d4 {[%clk 1:30:43]} 3... cxd4 {[%clk 1:29:42]} 4. Nxd4
{[%clk 1:30:51]} 4... e5 {[%clk 1:29:36]} 5. Nb5 {[%clk 1:30:25]} 5... d6 {[%clk
1:29:37]} 6. N1c3 {[%clk 1:29:18]} 6... a6 {[%clk 1:29:10]} 7. Na3 {[%clk
1:28:59]} 7... Be6 {[%clk 1:27:29]} 8. Nc4 {[%clk 1:23:54]} 8... Nf6 {[%clk
1:25:25]} 9. Be3 {[%clk 1:16:01]} 9... b5 {[%clk 1:10:19]} 10. Nd2 {[%clk
1:08:16]} 10... Be7 {[%clk 1:08:03]} 11. a3 {[%clk 0:59:48]} 11... O-O {[%clk
1:06:23]} 12. Be2 {[%clk 0:58:26]} 12... Qd7 {[%clk 0:54:27]} 13. h3 {[%clk
0:47:01]} 13... d5 {[%clk 0:43:50]} 14. exd5 {[%clk 0:43:54]} 14... Nxd5 {[%clk
0:41:49]} 15. Nxd5 {[%clk 0:41:16]} 15... Bxd5 {[%clk 0:42:17]} 16. Nb3 {[%clk
0:39:30]} 16... Rad8 {[%clk 0:40:18]} 17. Nc5 {[%clk 0:39:34]} 17... Bxc5 {[%clk
0:39:34]} 18. Bxc5 {[%clk 0:39:56]} 18... Qb7 {[%clk 0:30:57]} 19. Qc1 {[%clk
0:25:59]} 19... Rfe8 {[%clk 0:26:03]} 20. Rg1 {[%clk 0:24:23]} 20... Nd4 {[%clk
0:24:09]} 21. Qd2 {[%clk 0:21:31]} 21... Bc4 {[%clk 0:22:28]} 22. Bd3 {[%clk
0:18:15]} 22... e4 {[%clk 0:22:15]} 23. Bxd4 {[%clk 0:18:24]} 23... exd3+ {[%clk
0:19:16]} 24. Be3 {[%clk 0:18:42]} 24... dxc2 {[%clk 0:19:01]} 25. Qxc2 {[%clk
0:19:04]} 25... Bd3 {[%clk 0:18:30]} 26. Qb3 {[%clk 0:17:16]} 26... Qc7 {[%clk
0:16:45]} 27. g3 {[%clk 0:13:27]} 27... Qc5 {[%clk 0:13:21]} 0-1

[Variant "Standard"]
[Site "Europe Echecs"]

[Event "Championnat du monde jeunes U10"]
[Date "2024.11.25"]
[White "Zilincan, Tomas"]
[Black "Thorulsley, Kairaav"]
[WhiteElo "1778"]
[BlackElo "1520"]
[Round "10.13"]
[Result "1-0"]
[TimeControl "5400+30"]

1. Nf3 {[%clk 1:30:57]} 1... c5 {[%clk 1:30:53]} 2. c4 {[%clk 1:31:18]} 2... Nf6
{[%clk 1:24:19]} 3. Nc3 {[%clk 1:31:37]} 3... d6 {[%clk 1:18:49]} 4. g3 {[%clk
1:31:59]} 4... g6 {[%clk 1:19:06]} 5. Bg2 {[%clk 1:32:23]} 5... Bg7 {[%clk
1:19:26]} 6. d4 {[%clk 1:32:48]} 6... cxd4 {[%clk 1:19:16]} 7. Nxd4 {[%clk
1:32:48]} 7... a6 {[%clk 1:10:47]} 8. O-O {[%clk 1:33:00]} 8... O-O {[%clk
1:10:18]} 9. b3 {[%clk 1:32:00]} 9... Qc7 {[%clk 1:03:46]} 10. Bb2 {[%clk
1:32:01]} 10... e6 {[%clk 0:58:51]} 11. Rc1 {[%clk 1:30:48]} 11... Bd7 {[%clk
0:55:24]} 12. Qd2 {[%clk 1:29:53]} 12... Rd8 {[%clk 0:41:37]} 13. Rfd1 {[%clk
1:27:55]} 13... Be8 {[%clk 0:39:55]} 14. e4 {[%clk 1:25:59]} 14... Qe7 {[%clk
0:39:54]} 15. e5 {[%clk 1:23:56]} 15... dxe5 {[%clk 0:37:45]} 16. Nf5 {[%clk
1:22:06]} 16... Qd7 {[%clk 0:34:29]} 17. Qe2 {[%clk 1:21:09]} 17... Qc7 {[%clk
0:32:08]} 18. Rxd8 {[%clk 1:20:39]} 18... Qxd8 {[%clk 0:32:32]} 19. Nxg7 {[%clk
1:20:32]} 19... Kxg7 {[%clk 0:32:26]} 20. Bxb7 {[%clk 1:20:29]} 20... Ra7 {[%clk
0:32:15]} 21. Bg2 {[%clk 1:19:12]} 21... Qd6 {[%clk 0:25:38]} 22. Ne4 {[%clk
1:15:51]} 22... Nxe4 {[%clk 0:25:55]} 23. Qxe4 {[%clk 1:16:16]} 23... f6 {[%clk
0:23:16]} 24. c5 {[%clk 1:16:10]} 24... Qc7 {[%clk 0:20:00]} 25. b4 {[%clk
1:14:35]} 25... Bc6 {[%clk 0:18:00]} 26. Qc4 {[%clk 1:14:12]} 26... Bxg2 {[%clk
0:14:47]} 27. Kxg2 {[%clk 1:12:59]} 27... Qc6+ {[%clk 0:15:13]} 28. Kg1 {[%clk
1:13:21]} 28... Qd5 {[%clk 0:13:37]} 29. a4 {[%clk 1:11:52]} 29... Qxc4 {[%clk
0:13:12]} 30. Rxc4 {[%clk 1:12:14]} 30... Rc7 {[%clk 0:13:35]} 31. b5 {[%clk
1:09:00]} 31... axb5 {[%clk 0:13:47]} 32. axb5 {[%clk 1:09:23]} 32... Nd7 {[%clk
0:14:10]} 33. Ba3 {[%clk 1:09:19]} 33... Kf7 {[%clk 0:14:03]} 34. b6 {[%clk
1:06:02]} 34... Rc6 {[%clk 0:12:29]} 35. Ra4 {[%clk 1:03:35]} 35... Nxb6 {[%clk
0:10:04]} 36. Ra7+ {[%clk 1:02:26]} 36... Kg8 {[%clk 0:10:26]} 37. Ra6 {[%clk
1:01:38]} 37... Rc8 {[%clk 0:05:33]} 38. cxb6 {[%clk 1:01:16]} 38... Rb8 {[%clk
0:02:11]} 39. Bd6 {[%clk 1:01:16]} 39... Rxb6 {[%clk 0:01:39]} 40. Rxb6 {[%clk
1:01:39]} 40... e4 {[%clk 0:01:32]} 41. Rb7 {[%clk 1:01:55]} 41... e5 {[%clk
0:01:37]} 42. Kf1 {[%clk 1:02:13]} 42... h5 {[%clk 0:01:29]} 43. Ke2 {[%clk
1:02:38]} 43... g5 {[%clk 0:01:25]} 44. Ke3 {[%clk 1:03:00]} 44... f5 {[%clk
0:01:21]} 45. Bxe5 {[%clk 1:03:21]} 45... g4 {[%clk 0:00:49]} 46. Bd6 {[%clk
1:03:39]} 46... f4+ {[%clk 0:00:48]} 47. Kxf4 {[%clk 1:04:00]} 47... e3 {[%clk
0:01:08]} 48. Kg5 {[%clk 1:03:37]} 48... e2 {[%clk 0:01:18]} 49. Kg6 {[%clk
1:03:37]} 49... e1=R {[%clk 0:01:18]} 50. Rb8+ {[%clk 1:03:57]} 50... Re8 {[%clk
0:01:27]} 51. Rxe8# {[%clk 1:04:18]} 1-0

[Variant "Standard"]
[Site "Europe Echecs"]

[Event "Championnat du monde jeunes U10"]
[Date "2024.11.25"]
[White "Ostapenko, Volodymyr"]
[Black "Vydra, David"]
[WhiteElo "1720"]
[BlackElo "1615"]
[Round "10.15"]
[Result "1-0"]
[TimeControl "5400+30"]

1. e4 {[%clk 1:30:50]} 1... c5 {[%clk 1:30:38]} 2. Nf3 {[%clk 1:31:04]} 2... d6
{[%clk 1:30:36]} 3. c3 {[%clk 1:31:24]} 3... Nf6 {[%clk 1:30:30]} 4. Bd3 {[%clk
1:31:49]} 4... a6 {[%clk 1:29:57]} 5. Bc2 {[%clk 1:31:27]} 5... e6 {[%clk
1:28:20]} 6. O-O {[%clk 1:30:30]} 6... Be7 {[%clk 1:26:19]} 7. d4 {[%clk
1:28:52]} 7... cxd4 {[%clk 1:25:39]} 8. cxd4 {[%clk 1:28:26]} 8... b5 {[%clk
1:23:53]} 9. Re1 {[%clk 1:26:00]} 9... Bb7 {[%clk 1:22:01]} 10. Bg5 {[%clk
1:20:43]} 10... Nbd7 {[%clk 1:19:30]} 11. Nbd2 {[%clk 1:18:56]} 11... O-O {[%clk
1:10:50]} 12. Nf1 {[%clk 1:17:31]} 12... Rc8 {[%clk 0:58:37]} 13. Ng3 {[%clk
1:13:05]} 13... h6 {[%clk 0:57:45]} 14. Be3 {[%clk 1:10:15]} 14... Ng4 {[%clk
0:50:18]} 15. Bd2 {[%clk 1:08:26]} 15... Qb6 {[%clk 0:36:17]} 16. h3 {[%clk
1:01:08]} 16... Ngf6 {[%clk 0:33:48]} 17. Be3 {[%clk 1:00:51]} 17... d5 {[%clk
0:29:05]} 18. e5 {[%clk 1:00:27]} 18... Ne4 {[%clk 0:22:54]} 19. Nxe4 dxe4
{[%clk 0:23:18]} 20. Nd2 {[%clk 0:58:33]} 20... f5 {[%clk 0:22:27]} 21. Nb1
{[%clk 0:54:54]} 21... Rfd8 {[%clk 0:19:19]} 22. Nc3 {[%clk 0:48:10]} 22... Bb4
{[%clk 0:18:10]} 23. d5 {[%clk 0:43:32]} 23... Qc7 {[%clk 0:18:10]} 24. d6
{[%clk 0:43:31]} 24... Qc6 {[%clk 0:18:05]} 25. Bb3 {[%clk 0:39:44]} 25... Re8
{[%clk 0:13:38]} 26. Qh5 {[%clk 0:33:15]} 26... Nxe5 {[%clk 0:10:19]} 27. Qxf5
{[%clk 0:33:00]} 27... Nc4 {[%clk 0:10:32]} 28. Qg6 {[%clk 0:32:18]} 28... Kh8
{[%clk 0:07:49]} 29. Bxh6 {[%clk 0:31:04]} 29... gxh6 {[%clk 0:08:14]} 30. Qxh6+
{[%clk 0:31:28]} 30... Kg8 {[%clk 0:08:39]} 31. Rxe4 {[%clk 0:29:38]} 31... Re7
{[%clk 0:00:36]} 32. Rg4+ {[%clk 0:29:10]} 32... Kf7 {[%clk 0:01:03]} 33. Qg6+
{[%clk 0:29:30]} 33... Kf8 {[%clk 0:01:29]} 34. Qg8# {[%clk 0:29:56]} 1-0

[Variant "Standard"]
[Site "Europe Echecs"]

[Event "Championnat du monde jeunes U10"]
[Date "2024.11.25"]
[White "Schettini Acuna, Massimo Matteo"]
[Black "Button-Rabl, Jiban"]
[WhiteElo "1703"]
[BlackElo "1435"]
[Round "10.17"]
[Result "1-0"]
[TimeControl "5400+30"]

1. e4 {[%clk 1:30:56]} 1... e5 {[%clk 1:30:50]} 2. Nf3 {[%clk 1:31:01]} 2... Nc6
{[%clk 1:31:12]} 3. Bb5 {[%clk 1:31:22]} 3... a6 {[%clk 1:31:39]} 4. Ba4 {[%clk
1:31:43]} 4... Nf6 {[%clk 1:31:56]} 5. d3 {[%clk 1:31:46]} 5... Bc5 {[%clk
1:32:08]} 6. O-O {[%clk 1:31:52]} 6... b5 {[%clk 1:31:35]} 7. Bb3 {[%clk
1:32:13]} 7... d6 {[%clk 1:32:03]} 8. c3 {[%clk 1:32:23]} 8... Bg4 {[%clk
1:31:11]} 9. Nbd2 {[%clk 1:32:00]} 9... O-O {[%clk 1:31:12]} 10. h3 {[%clk
1:31:40]} 10... Be6 {[%clk 1:31:06]} 11. Bc2 {[%clk 1:17:40]} 11... Qd7 {[%clk
1:30:31]} 12. Kh2 {[%clk 1:17:46]} 12... Ne8 {[%clk 1:23:42]} 13. Ng5 {[%clk
1:15:05]} 13... f6 {[%clk 1:20:53]} 14. Nxe6 {[%clk 1:13:48]} 14... Qxe6 {[%clk
1:20:36]} 15. Bb3 {[%clk 1:14:05]} 15... Nd8 {[%clk 1:08:30]} 16. Bxe6+ {[%clk
1:14:23]} 16... Nxe6 17. Nf3 {[%clk 1:13:59]} 17... c6 {[%clk 1:08:58]} 18. d4
{[%clk 1:14:02]} 18... exd4 {[%clk 1:09:20]} 19. cxd4 {[%clk 1:14:26]} 19... Bb6
{[%clk 1:09:29]} 20. Be3 {[%clk 1:14:20]} 20... Bc7 {[%clk 1:09:40]} 21. d5
{[%clk 1:14:24]} 21... cxd5 {[%clk 1:09:59]} 22. Qxd5 {[%clk 1:14:36]} 22... Kf7
{[%clk 1:10:19]} 23. Nd4 {[%clk 1:14:58]} 23... g6 {[%clk 1:09:48]} 24. Nxe6
{[%clk 1:15:07]} 24... Rc8 {[%clk 1:09:23]} 25. Nxc7+ {[%clk 1:15:05]} 25... Kg7
{[%clk 1:09:31]} 26. Ne6+ {[%clk 1:15:21]} 26... Kg8 {[%clk 1:09:52]} 27. Nxf8+
{[%clk 1:15:38]} 27... Kxf8 {[%clk 1:10:17]} 28. Bh6+ {[%clk 1:16:00]} 28... Ng7
{[%clk 1:10:37]} 29. Bxg7+ {[%clk 1:16:15]} 29... Kxg7 {[%clk 1:11:01]} 30. Qb7+
{[%clk 1:16:40]} 30... Kh6 {[%clk 1:11:17]} 31. Qxc8 {[%clk 1:17:04]} 31... d5
32. Qf8+ {[%clk 1:17:14]} 32... Kh5 {[%clk 1:11:59]} 33. g4+ {[%clk 1:17:30]}
33... Kg5 {[%clk 1:12:21]} 34. f4+ {[%clk 1:17:48]} 34... Kh4 {[%clk 1:12:35]}
35. Qh6# {[%clk 1:17:32]} 1-0

[Variant "Standard"]
[Site "Europe Echecs"]

[Event "Championnat du monde jeunes U10"]
[Date "2024.11.25"]
[White "Orsi, Andrea"]
[Black "Kostyukovich, Ivan"]
[WhiteElo "1728"]
[BlackElo "1489"]
[Round "10.19"]
[Result "0-1"]
[TimeControl "5400+30"]

1. e4 {[%clk 1:30:56]} 1... e5 {[%clk 1:30:55]} 2. Nf3 {[%clk 1:31:21]} 2... Nc6
{[%clk 1:31:13]} 3. Bb5 {[%clk 1:31:46]} 3... a6 {[%clk 1:31:15]} 4. Ba4 {[%clk
1:32:12]} 4... b5 {[%clk 1:31:34]} 5. Bb3 {[%clk 1:32:38]} 5... Bb7 {[%clk
1:31:44]} 6. O-O {[%clk 1:32:50]} 6... Nf6 {[%clk 1:31:37]} 7. Re1 {[%clk
1:31:37]} 7... Bc5 {[%clk 1:31:23]} 8. c3 {[%clk 1:31:40]} 8... d6 {[%clk
1:31:22]} 9. d4 {[%clk 1:32:04]} 9... Bb6 {[%clk 1:31:04]} 10. a4 {[%clk
1:28:55]} 10... h6 {[%clk 1:29:37]} 11. Bc2 {[%clk 1:08:45]} 11... O-O {[%clk
1:29:17]} 12. Be3 {[%clk 1:06:40]} 12... Ng4 {[%clk 1:23:38]} 13. h3 {[%clk
1:00:43]} 13... Nxe3 {[%clk 1:23:33]} 14. Rxe3 {[%clk 0:59:55]} 14... Qf6 {[%clk
1:21:10]} 15. dxe5 {[%clk 0:51:31]} 15... Nxe5 {[%clk 1:21:00]} 16. Nxe5 {[%clk
0:51:33]} 16... dxe5 {[%clk 1:19:43]} 17. Rf3 {[%clk 0:50:58]} 17... Qg6 {[%clk
1:18:46]} 18. Rg3 {[%clk 0:49:13]} 18... Qxg3 {[%clk 1:19:04]} 19. Qe2 {[%clk
0:48:08]} 19... Qf4 {[%clk 1:13:27]} 0-1

[Variant "Standard"]
[Site "Europe Echecs"]

[Event "Championnat du monde jeunes U10"]
[Date "2024.11.25"]
[White "Golya, David"]
[Black "Vukashinovikj, Jovan"]
[WhiteElo "1672"]
[BlackElo "1454"]
[Round "10.20"]
[Result "1-0"]
[TimeControl "5400+30"]

1. e4 {[%clk 1:30:58]} 1... c6 {[%clk 1:30:53]} 2. d4 {[%clk 1:31:23]} 2... d5
{[%clk 1:31:19]} 3. exd5 {[%clk 1:31:38]} 3... cxd5 {[%clk 1:31:41]} 4. Be2
{[%clk 1:31:22]} 4... Nf6 {[%clk 1:31:24]} 5. Nf3 {[%clk 1:31:47]} 5... Nc6
{[%clk 1:31:28]} 6. Bf4 {[%clk 1:31:59]} 6... e6 {[%clk 1:31:08]} 7. c3 {[%clk
1:32:13]} 7... Bd6 {[%clk 1:30:41]} 8. Bxd6 {[%clk 1:31:07]} 8... Qxd6 {[%clk
1:30:50]} 9. Nbd2 {[%clk 1:31:07]} 9... Bd7 {[%clk 1:30:24]} 10. O-O {[%clk
1:31:08]} 10... O-O {[%clk 1:30:47]} 11. Re1 {[%clk 1:28:43]} 11... Ne4 {[%clk
1:29:04]} 12. Nxe4 {[%clk 1:28:13]} 12... dxe4 {[%clk 1:29:27]} 13. Nd2 {[%clk
1:28:22]} 13... f5 {[%clk 1:29:31]} 14. f3 {[%clk 1:27:04]} 14... Qf4 15. fxe4
{[%clk 1:10:26]} 15... fxe4 {[%clk 1:27:35]} 16. Bb5 {[%clk 1:10:05]} 16... Qf2+
{[%clk 1:25:46]} 17. Kh1 {[%clk 1:09:12]} 17... e3 {[%clk 1:19:34]} 18. Nf3
{[%clk 1:05:26]} 18... a6 {[%clk 1:19:03]} 19. Be2 {[%clk 1:05:25]} 19... Rxf3
{[%clk 1:16:31]} 20. Bxf3 {[%clk 1:05:44]} 20... Rf8 {[%clk 1:16:41]} 21. Re2
{[%clk 1:05:30]} 21... Qh4 {[%clk 1:16:23]} 22. Rxe3 {[%clk 1:05:53]} 22... Ne7
{[%clk 1:16:01]} 23. Bxb7 {[%clk 1:05:14]} 23... Nf5 {[%clk 1:16:10]} 24. Rh3
{[%clk 1:05:29]} 24... Qf4 {[%clk 1:15:59]} 25. Bxa6 {[%clk 1:04:34]} 25... Bc6
{[%clk 1:15:11]} 26. Qe2 {[%clk 1:04:09]} 26... Be4 {[%clk 1:14:30]} 27. Rf1
{[%clk 1:04:02]} 27... Qd6 {[%clk 1:13:23]} 28. Bc4 {[%clk 1:03:40]} 28... Qc6
{[%clk 1:13:24]} 29. Bd3 {[%clk 1:01:35]} 29... Bxd3 {[%clk 1:13:20]} 30. Qxd3
{[%clk 1:01:54]} 30... g6 {[%clk 1:12:37]} 31. Kg1 {[%clk 1:01:32]} 31... Qd5
{[%clk 1:09:10]} 32. g4 {[%clk 1:00:22]} 32... Nd6 {[%clk 1:09:22]} 33. Rxf8+
{[%clk 1:00:44]} 33... Kxf8 {[%clk 1:09:46]} 34. Qf3+ {[%clk 1:01:00]} 1-0

[Variant "Standard"]
[Site "Europe Echecs"]

[Event "Championnat du monde jeunes U10"]
[Date "2024.11.25"]
[White "Osmolovskii, Nikita"]
[Black "Radovic, Koca"]
[WhiteElo "1468"]
[BlackElo "1626"]
[Round "10.21"]
[Result "1/2-1/2"]
[TimeControl "5400+30"]

1. e4 {[%clk 1:30:54]} 1... e5 {[%clk 1:30:56]} 2. Nf3 {[%clk 1:31:19]} 2... Nc6
{[%clk 1:31:11]} 3. Bc4 {[%clk 1:31:42]} 3... Bc5 {[%clk 1:31:36]} 4. c3 {[%clk
1:32:06]} 4... Nf6 {[%clk 1:31:35]} 5. d3 {[%clk 1:32:28]} 5... O-O {[%clk
1:30:56]} 6. O-O {[%clk 1:32:37]} 6... h6 {[%clk 1:30:50]} 7. b4 {[%clk
1:32:18]} 7... Bb6 {[%clk 1:30:59]} 8. b5 {[%clk 1:31:28]} 8... Na5 {[%clk
1:25:49]} 9. Nxe5 {[%clk 1:30:34]} 9... Nxc4 10. Nxc4 {[%clk 1:30:33]} 10... d5
{[%clk 1:08:16]} 11. Nxb6 axb6 12. e5 {[%clk 1:25:48]} 12... Nd7 {[%clk
0:53:14]} 13. d4 {[%clk 1:25:31]} 13... Re8 {[%clk 0:46:40]} 14. Qb3 {[%clk
1:14:14]} 14... Nf8 {[%clk 0:44:42]} 15. Na3 {[%clk 1:06:20]} 15... Be6 {[%clk
0:39:51]} 16. f4 {[%clk 1:04:27]} 16... Bf5 {[%clk 0:33:00]} 17. Nc2 {[%clk
1:01:37]} 17... Qd7 {[%clk 0:31:41]} 18. Ne3 {[%clk 0:56:34]} 18... Be4 {[%clk
0:30:03]} 1/2-1/2

[Variant "Standard"]
[Site "Europe Echecs"]

[Event "Championnat du monde jeunes U10"]
[Date "2024.11.25"]
[White "Loberti, Tommaso"]
[Black "Park, Jaeik"]
[WhiteElo "1474"]
[BlackElo "1477"]
[Round "10.27"]
[Result "1/2-1/2"]
[TimeControl "5400+30"]

1. e4 {[%clk 1:30:58]} 1... c5 {[%clk 1:30:53]} 2. Nf3 {[%clk 1:31:16]} 2... e6
{[%clk 1:31:13]} 3. d4 {[%clk 1:31:32]} 3... cxd4 {[%clk 1:31:38]} 4. Nxd4
{[%clk 1:31:53]} 4... Nc6 {[%clk 1:32:03]} 5. Nc3 {[%clk 1:32:04]} 5... Qc7
{[%clk 1:32:17]} 6. Nb3 {[%clk 1:26:47]} 6... Nf6 {[%clk 1:32:09]} 7. Bd3 {[%clk
1:23:12]} 7... a6 {[%clk 1:31:08]} 8. Be3 {[%clk 1:17:56]} 8... b5 {[%clk
1:30:26]} 9. a4 {[%clk 1:13:07]} 9... b4 {[%clk 1:30:17]} 10. Ne2 {[%clk
1:12:20]} 10... Bb7 {[%clk 1:30:00]} 11. f3 {[%clk 1:07:28]} 11... Bd6 {[%clk
1:28:10]} 12. h3 {[%clk 1:00:39]} 12... Ne5 {[%clk 1:24:43]} 13. Rc1 {[%clk
0:56:37]} 13... Bc6 {[%clk 1:21:45]} 14. f4 {[%clk 0:51:43]} 14... Nxd3+ {[%clk
1:18:30]} 15. cxd3 {[%clk 0:51:34]} 15... Qb8 {[%clk 1:07:31]} 16. Nbd4 {[%clk
0:44:44]} 16... Bb7 {[%clk 1:05:27]} 17. Qd2 {[%clk 0:41:46]} 17... Be7 {[%clk
1:04:18]} 18. O-O {[%clk 0:37:51]} 18... O-O {[%clk 1:03:45]} 19. g4 {[%clk
0:32:34]} 19... d5 {[%clk 0:56:58]} 20. e5 {[%clk 0:30:08]} 20... Nd7 {[%clk
0:56:49]} 21. Nc6 {[%clk 0:27:33]} 21... Bxc6 {[%clk 0:56:55]} 22. Rxc6 {[%clk
0:27:51]} 22... Qb7 {[%clk 0:55:19]} 23. Rfc1 {[%clk 0:25:42]} 23... Rfc8 {[%clk
0:54:41]} 24. Rxc8+ {[%clk 0:22:25]} 24... Rxc8 {[%clk 0:54:58]} 25. Rxc8+
{[%clk 0:22:10]} 25... Qxc8 {[%clk 0:55:22]} 26. Qc1 {[%clk 0:20:57]} 26...
Qxc1+ {[%clk 0:54:08]} 27. Nxc1 {[%clk 0:20:39]} 27... Kf8 {[%clk 0:54:15]} 28.
Kf1 {[%clk 0:19:07]} 28... Ke8 {[%clk 0:53:07]} 29. Ke1 {[%clk 0:17:53]} 1/2-1/2

[Variant "Standard"]
[Site "Europe Echecs"]

[Event "Championnat du monde jeunes U10"]
[Date "2024.11.26"]
[White "Shogdzhiev, Roman"]
[Black "Mirzhanov, Arlan"]
[WhiteElo "2202"]
[BlackElo "1721"]
[Round "11.1"]
[Result "1-0"]
[TimeControl "5400+30"]

1. e4 {[%clk 1:31:00]} 1... c5 {[%clk 1:30:56]} 2. Nf3 d6 {[%clk 1:31:14]} 3. d4
{[%clk 1:31:59]} 3... cxd4 {[%clk 1:31:40]} 4. Nxd4 {[%clk 1:32:25]} 4... Nf6
{[%clk 1:32:08]} 5. Nc3 {[%clk 1:32:50]} 5... a6 {[%clk 1:32:33]} 6. h3 {[%clk
1:33:17]} 6... e5 {[%clk 1:32:52]} 7. Nb3 {[%clk 1:33:46]} 7... Be7 {[%clk
1:33:16]} 8. g4 {[%clk 1:34:09]} 8... h6 {[%clk 1:33:42]} 9. Be3 {[%clk
1:34:36]} 9... Be6 {[%clk 1:33:52]} 10. Qf3 {[%clk 1:35:05]} 10... Nbd7 {[%clk
1:27:11]} 11. O-O-O {[%clk 1:35:25]} 11... b5 {[%clk 1:20:01]} 12. Nd5 {[%clk
1:31:47]} 12... Bxd5 {[%clk 1:14:38]} 13. exd5 {[%clk 1:32:08]} 13... Rc8 {[%clk
1:12:53]} 14. Bd3 {[%clk 1:25:15]} 14... Nb6 {[%clk 0:48:21]} 15. Bf5 {[%clk
1:12:06]} 15... Rc4 {[%clk 0:38:57]} 16. Na5 {[%clk 1:02:12]} 16... Na4 {[%clk
0:29:33]} 17. Nxc4 {[%clk 0:56:56]} 17... bxc4 {[%clk 0:30:00]} 18. c3 {[%clk
0:51:52]} 18... Qa5 {[%clk 0:25:18]} 19. h4 {[%clk 0:41:46]} 19... h5 {[%clk
0:13:23]} 20. g5 {[%clk 0:41:29]} 20... Ng4 {[%clk 0:12:26]} 21. Bxg4 {[%clk
0:33:59]} 21... hxg4 {[%clk 0:11:19]} 22. Qxg4 {[%clk 0:34:20]} 22... O-O {[%clk
0:08:59]} 23. Qxc4 {[%clk 0:33:06]} 23... Rb8 {[%clk 0:08:43]} 24. Rd2 {[%clk
0:33:26]} 24... f5 {[%clk 0:07:10]} 25. gxf6 {[%clk 0:30:23]} 25... Bxf6 {[%clk
0:07:29]} 26. Bg5 {[%clk 0:28:11]} 26... Rf8 {[%clk 0:07:21]} 27. Bxf6 {[%clk
0:28:06]} 27... Rxf6 {[%clk 0:07:46]} 28. Qb4 {[%clk 0:27:32]} 28... Qxb4 {[%clk
0:06:39]} 29. cxb4 {[%clk 0:27:56]} 29... Rf4 {[%clk 0:07:01]} 30. a3 {[%clk
0:27:09]} 30... Kf7 {[%clk 0:07:11]} 31. h5 {[%clk 0:27:30]} 31... Nb6 {[%clk
0:07:10]} 32. b3 {[%clk 0:27:43]} 32... e4 {[%clk 0:07:29]} 33. h6 {[%clk
0:27:10]} 33... gxh6 {[%clk 0:07:45]} 34. Rxh6 {[%clk 0:27:39]} 34... Ke7 {[%clk
0:07:43]} 35. Rd4 {[%clk 0:27:44]} 35... Kd7 {[%clk 0:07:52]} 36. Re6 {[%clk
0:24:29]} 36... Rxf2 {[%clk 0:07:43]} 37. Rexe4 {[%clk 0:24:45]} 37... Nc8
{[%clk 0:07:30]} 38. Rf4 {[%clk 0:24:32]} 38... Ra2 {[%clk 0:07:36]} 39. Rf7+
{[%clk 0:24:56]} 39... Ke8 {[%clk 0:08:03]} 40. Rh7 {[%clk 0:24:43]} 40... a5
{[%clk 0:07:37]} 41. Rg4 {[%clk 0:24:57]} 41... Kf8 {[%clk 0:08:02]} 42. Rh8+
{[%clk 0:25:22]} 42... Kf7 {[%clk 0:08:28]} 43. Rf4+ {[%clk 0:25:41]} 43... Ke7
{[%clk 0:08:44]} 44. Rxc8 {[%clk 0:26:07]} 44... a4 {[%clk 0:08:58]} 45. Rc7+
{[%clk 0:26:21]} 45... Ke8 {[%clk 0:09:15]} 46. bxa4 {[%clk 0:26:43]} 46... Kd8
{[%clk 0:09:28]} 47. Ra7 {[%clk 0:27:07]} 47... Ke8 {[%clk 0:09:53]} 48. Rc4
{[%clk 0:27:33]} 48... Kd8 {[%clk 0:10:17]} 49. Rh4 {[%clk 0:27:59]} 49... Rc2+
{[%clk 0:10:01]} 1-0

[Variant "Standard"]
[Site "Europe Echecs"]